Cogmind - Beta 10.2 @@@ ROGUE MODE // 2021.05.24 @ 19:54:29 Player: Plexion Result: Self-destructed Performance ------------- Evolutions (1) 500 Regions Visited (3) 600 Robots Destroyed (35) 175 Value Destroyed (583) 583 Prototype IDs (0) 0 Alien Tech Used (0) 0 Bonus (0) 0 TOTAL SCORE: 1858 Bonus ------- None Cogmind --------- Core Integrity 315/400 Matter 75/300 Energy 100/100 System Corruption 0% Temperature Cool (6) Movement Treading (160) Location -9/Materials Parts ------- > --- POWER (1) -------- (None) > --- PROPULSION (2) --- Light Treads Light Treads > --- UTILITY (4) ------ Large Storage Unit Large Storage Unit > --- WEAPON (2) ------- Assault Rifle > --- INVENTORY (16) --- Light Treads Light Treads Light Treads Light Treads Light Treads Light Treads Light Treads Light Treads Light Treads Medium Storage Unit Medium Storage Unit Light Armor Plating EM Pulse Gun Beam Rifle Light Assault Rifle Peak State ------------ > --- POWER ------------ Light Nuclear Core > --- PROPULSION ------- Light Treads Light Treads > --- UTILITY ---------- Large Storage Unit Large Storage Unit Light Armor Plating Light Armor Plating > --- WEAPON ----------- Assault Rifle Assault Rifle > --- INVENTORY -------- Light Treads Light Treads Light Treads Medium Storage Unit Medium Storage Unit Light Armor Plating EM Pulse Gun Beam Rifle Light Assault Rifle Light Assault Rifle [Rating: 12] Favorites ----------- Power Light Nuclear Core Engine Ion Engine Power Core Light Nuclear Core Propulsion Light Treads Treads Light Treads Utility Small Storage Unit Device Cooling System Storage Small Storage Unit Protection Light Armor Plating Weapon Assault Rifle Ballistic Gun Assault Rifle Launcher Grenade Launcher Build | -11 -10 -10 -9 ------- Run | Scr Mat Min Mat Slots Evolved 2 | . . . 2 Power . | . . . . Propulsion . | . . . . Utility 2 | . . . 2 Weapon . | . . . . Parts Attached 39 | 6 17 6 10 Power 2 | 1 . 1 . Engine 1 | 1 . . . Core 1 | . . 1 . Reactor . | . . . . Propulsion 9 | 2 4 . 3 Treads 9 | 2 4 . 3 Leg . | . . . . Wheel . | . . . . Hover . | . . . . Flight . | . . . . Utility 12 | 1 4 1 6 Device 1 | . 1 . . Storage 6 | 1 1 1 3 Processor . | . . . . Hackware . | . . . . Protection 5 | . 2 . 3 Artifact . | . . . . Weapon 16 | 2 9 4 1 Energy Gun . | . . . . Energy Cannon . | . . . . Ballistic Gun 12 | 2 7 2 1 Ballistic Cannon . | . . . . Launcher 4 | . 2 2 . Special Weapon . | . . . . Impact Weapon . | . . . . Slashing Weapon . | . . . . Piercing Weapon . | . . . . Special Melee Weapon . | . . . . Unidentified Prototypes . | . . . . Parts Lost 7 | . . 1 6 Power 1 | . . . 1 Propulsion . | . . . . Utility 3 | . . . 3 Weapon 3 | . . 1 2 Highest Loss Streak 2 | . . 1 2 Average Slot Usage (%) 96 | . 92 99 97 Engine 6 | . 14 . . Core 6 | . . 13 9 Treads 26 | . 27 28 22 Device 1 | . 3 . . Storage 17 | . 13 19 22 Protection 10 | . 4 8 20 Ballistic Gun 26 | . 27 27 21 Naked Turns . | . . . . Heaviest Build 53 | 12 16 17 53 Greatest Support 40 | 40 40 40 40 Greatest Overweight (x) 1 | . . . 1 Average Overweight (x) . | . . . . Largest Inventory Capacity 22 | 6 6 8 22 Average Capacity 8 | 5 5 6 15 Most Carried 16 | 2 6 7 16 Average Carried 7 | 1 5 6 12 Final Capacity 16 | 6 6 8 16 Final Carried 15 | 2 6 6 15 Class Distribution -------------------- 100% | Mutant Dominant Class ---------------- Mutant | -10/Materials Mutant | -10/Mines Mutant | -9/Materials Resources | -11 -10 -10 -9 ----------- Run | Scr Mat Min Mat Matter Collected 938 | 222 195 191 330 Remotely . | . . . . Salvage Created 986 | . 241 198 547 Parts 75 | . 21 15 39 Haulers Intercepted 5 | . 2 . 3 Recyclers Shooed 2 | . . 1 1 Parts Field Recycled . | . . . . Retrieved Matter . | . . . . Parts Self-Destructed . | . . . . Prevented . | . . . . Kills | -11 -10 -10 -9 ------- Run | Scr Mat Min Mat Combat Hostiles Destroyed 25 | . 9 6 10 Guns 15 | . 2 3 10 AOE 10 | . 7 3 . Classes Destroyed 8 | . 4 2 2 Worker 1 | . 1 . . Builder 1 | . . . 1 Tunneler 1 | . . 1 . Hauler 5 | . 2 . 3 Recycler 2 | . . 1 1 Swarmer 15 | . 6 3 6 Grunt 8 | . 3 3 2 Sentry 2 | . . . 2 Best Kill Streak 5 | . 5 3 3 Combat Bots Only 5 | . 5 3 3 Max Kills in Single Turn 2 | . 2 2 1 Gunslinging . | . . . . Exploded 2 | . 2 2 . Melee . | . . . . Uniques/NPCs Destroyed . | . . . . Combat | -11 -10 -10 -9 -------- Run | Scr Mat Min Mat Damage Taken 1491 | . 323 328 840 Core 238 | . 85 68 85 Absorbed by Shields . | . . . . Core Remaining (%) 69 | 100 . 38 . Volleys Fired 120 | . 24 26 70 Largest 2 | . 2 2 2 Hottest 40 | . 40 40 40 Shots Fired 224 | . 44 41 139 Gun 212 | . 40 33 139 Cannon . | . . . . Launcher 12 | . 4 8 . Special . | . . . . Kinetic 212 | . 40 33 139 Thermal . | . . . . Explosive 12 | . 4 8 . Electromagnetic . | . . . . Robot Hit Streak 12 | . 9 12 10 Robot Miss Streak 4 | . 3 1 4 Penetration Max . | . . . . Secondary Targets 1 | . . . 1 Max Gunslinging Chain 1 | . . . 1 Shots Hit Robots 154 | . 33 26 95 Core Hits 64 | . 22 15 27 Critical Hits 2 | . . . 2 Critical Kills . | . . . . Critical Parts Destroyed 2 | . . . 2 Melee Attacks . | . . . . Impact . | . . . . Slashing . | . . . . Piercing . | . . . . Sneak Attacks . | . . . . Combat Hostiles . | . . . . Follow-up Attacks . | . . . . Damage Inflicted 2700 | . 780 806 1114 Guns 1762 | . 364 314 1084 Cannons . | . . . . Explosions 908 | . 416 492 . Melee . | . . . . Ramming 30 | . . . 30 Kinetic 1762 | . 364 314 1084 Thermal . | . . . . Explosive 908 | . 416 492 . Electromagnetic . | . . . . Impact . | . . . . Slashing . | . . . . Piercing . | . . . . Highest Corruption . | . . . . Average Corruption . | . . . . Corruption Purged . | . . . . Overload Shots . | . . . . Overflow Damage 29 | . 7 22 . Projectiles . | . . . . Explosions 29 | . 7 22 . Melee . | . . . . Knockbacks . | . . . . Impact . | . . . . Kinetic . | . . . . Secondary . | . . . . Self-Inflicted Damage 75 | . 6 69 . Shots 3 | . 1 2 . Rammed 4 | . . . 4 Targets Rammed 4 | . . . 4 Kicked . | . . . . Crushed . | . . . . Highest Temperature 34 | . 9 30 34 Average Temperature 9 | . 7 8 9 Received Heat Transfer 399 | . 105 114 180 Siege Activations . | . . . . Robots Corrupted . | . . . . Combat Hostiles . | . . . . Parts Fried . | . . . . Impact Corruptions . | . . . . Robots Melted . | . . . . Combat Hostiles . | . . . . Parts Melted . | . . . . Heat Transferred . | . . . . Parts Sabotaged . | . . . . Parts Stolen . | . . . . Parts Stripped . | . . . . Power Chain Reactions . | . . . . Missiles Intercepted . | . . . . Alert | -11 -10 -10 -9 ------- Run | Scr Mat Min Mat Peak Influence 302 | . 204 85 302 Initial 29 | . . 5 29 Average 57 | . 46 44 95 Maximum Alert Level 1 | . 1 . 1 Low Security (%) 94 | 100 91 100 90 Level 1 5 | . 8 . 9 Level 2 . | . . . . Level 3 . | . . . . Level 4 . | . . . . Level 5 . | . . . . High Security . | . . . . Max Security . | . . . . Squads Dispatched 3 | . 1 . 2 Investigation 1 | . . . 1 Extermination . | . . . . Reinforcement 2 | . 1 . 1 Assault . | . . . . Garrison . | . . . . Intercept . | . . . . Construction Impeded . | . . . . Haulers Reinforced . | . . . . Stealth | -11 -10 -10 -9 --------- Run | Scr Mat Min Mat Distress Signals 2 | . . . 2 Communications Jammed . | . . . . Distress Signals . | . . . . Times Spotted 55 | . 22 10 23 Peak Tracking Total 7 | . 6 3 7 Tactical Retreats 8 | . . 4 4 Traps | -11 -10 -10 -9 ------- Run | Scr Mat Min Mat Traps Triggered 5 | . 4 . 1 Indirectly . | . . . . Trap Hack Attempts . | . . . . Triggered . | . . . . Disarmed . | . . . . Reprogrammed . | . . . . Reused . | . . . . Traps Extracted . | . . . . Installed . | . . . . Triggered 1 | . 1 . . Machines | -11 -10 -10 -9 ---------- Run | Scr Mat Min Mat Machines Disabled 1 | . . . 1 Max in Single Turn 1 | . . . 1 Machines Sabotaged . | . . . . Garrisons Compromised . | . . . . Overloaded Fab Kills . | . . . . Fab Network Shutdowns . | . . . . Hacking | -11 -10 -10 -9 --------- Run | Scr Mat Min Mat Machines Accessed 3 | . 2 . 1 Terminals 3 | . 2 . 1 Fabricators . | . . . . Repair Stations . | . . . . Recycling Units . | . . . . Scanalyzers . | . . . . Garrison Access . | . . . . Total Hacks 4 | . 2 . 2 Successful 2 | . 2 . . Failed 2 | . . . 2 Catastrophic 1 | . . . 1 Database Lockouts . | . . . . Manual 3 | . 1 . 2 Terminals 4 | . 2 . 2 Fabricators . | . . . . Repair Stations . | . . . . Recycling Units . | . . . . Scanalyzers . | . . . . Garrison Access . | . . . . Terminal Hacks 2 | . 2 . . Locate Traps 1 | . 1 . . Zone Layout 1 | . 1 . . Fabricator Hacks . | . . . . Repair Station Hacks . | . . . . Recycling Unit Hacks . | . . . . Scanalyzer . | . . . . Garrison Access Hacks . | . . . . Unauthorized Hacks . | . . . . Terminals . | . . . . Fabricators . | . . . . Repair Stations . | . . . . Recycling Units . | . . . . Scanalyzers . | . . . . Garrison Access . | . . . . Data Cores Recovered . | . . . . Used . | . . . . Hacking Detections 2 | . 1 . 1 Full Trace Events . | . . . . Feedback Events . | . . . . Feedback Blocked . | . . . . Robot Schematics Acquired . | . . . . Robots Built . | . . . . Matter . | . . . . Time . | . . . . Total Robot Build Rating . | . . . . Part Schematics Acquired . | . . . . Parts Built . | . . . . Matter . | . . . . Time . | . . . . Total Part Build Rating . | . . . . Parts Repaired . | . . . . Time . | . . . . Parts Recycled . | . . . . Recycled Matter . | . . . . Retrieved Matter . | . . . . Retrieved Components . | . . . . Parts Scanalyzed . | . . . . Part Schematics Acquired . | . . . . Parts Damaged . | . . . . Bothacking | -11 -10 -10 -9 ------------ Run | Scr Mat Min Mat Used RIF Installer . | . . . . Robots Hacked . | . . . . Non-combat . | . . . . Combat . | . . . . Robot Hacks Applied . | . . . . Relay Couplers Released . | . . . . Robots Rewired . | . . . . Allies Hacked . | . . . . Hacks Repelled . | . . . . Allies | -11 -10 -10 -9 -------- Run | Scr Mat Min Mat Total Allies . | . . . . Largest Group . | . . . . Highest-Rated Group . | . . . . Highest-Rated Ally . | . . . . Total Orders . | . . . . Ally Attacks . | . . . . Total Damage . | . . . . Kills . | . . . . Allies Corrupted . | . . . . Allies Melted . | . . . . Intel | -11 -10 -10 -9 ------- Run | Scr Mat Min Mat Robot Analysis Total . | . . . . Derelict Logs Recovered 1 | . . 1 . Drone Launches . | . . . . Drone Recoveries . | . . . . Exploration | -11 -10 -10 -9 ------------- Run | Scr Mat Min Mat Turns Passed 3091 | 69 1267 950 805 Spaces Moved 1620 | 39 729 544 308 Core 3 | 3 . . . Treads 1617 | 36 729 544 308 Legs . | . . . . Wheels . | . . . . Hover . | . . . . Flight . | . . . . Fastest Speed 50 | 50 160 160 160 Average Speed 163 | 151 160 160 178 Slowest Speed 180 | 160 160 160 180 Overloaded Moves . | . . . . Propulsion Burnouts . | . . . . Robots Hopped . | . . . . Cave-ins Triggered . | . . . . Exploration Rate (%) 52 | 3 83 97 25 Regions Visited 3 Branch Regions 1 Pre-discovered Areas 2 | . . 2 . Known Exits Taken . | . . . . Unknown Exits Taken 3 | 1 1 1 . Scrap Searched 1 | . . 1 . Spaces Dug 7 | . . 7 . Terrain Destroyed 53 | . 28 25 . Melee . | . . . . Projectile . | . . . . AOE 53 | . 28 25 . Terrain Rammed . | . . . . Walls Destroyed . | . . . . Machines Disabled . | . . . . Actions | -11 -10 -10 -9 --------- Run | Scr Mat Min Mat Total 1844 | 46 786 581 431 Wait 29 | . . 3 26 Move 1617 | 38 728 543 308 Hop . | . . . . Pick Up 20 | 2 8 1 9 Fast Attach 20 | 6 10 2 2 Attach 5 | . . 1 4 Detach 2 | . . . 2 Swap 14 | . 7 3 4 Drop 13 | . 9 2 2 Fire 120 | . 24 26 70 Melee . | . . . . Ram . | . . . . Kick . | . . . . Crush 4 | . . . 4 Escape Stasis . | . . . . Rewire . | . . . . Trap . | . . . . Miscellaneous . | . . . . Route ------- -11/Scrapyard -10/Materials (discovered 3 exits: *Mat x2 / [*Min]) -10/Mines (discovered 2 exits: *Mat x2) -9/Materials History --------- Turn | Location | Event 36 | -11/Scrapyard | Discovered new exit (range 14) 70 | -11/Scrapyard | Entered Materials 314 | -10/Materials | Build established: Mutant 483 | -10/Materials | Discovered new exit (range 4) 507 | -10/Materials | Discovered new exit (range 3) 668 | -10/Materials | Discovered new exit (range 7) 1337 | -10/Materials | Entered Mines 1360 | -10/Mines | Met a Derelict bent on vengeance 1493 | -10/Mines | Learned location of Zion (-6) 1586 | -10/Mines | Discovered new exit (range 12) 1866 | -10/Mines | Learned location of Storage (-8) 1905 | -10/Mines | Core integrity fell below 50% 2271 | -10/Mines | Discovered new exit (range 8) 2287 | -10/Mines | Entered Materials 2287 | -9/Materials | Evolved 2 slots: Utility x2 3092 | -9/Materials | Self-destructed Last Messages --------------- 03043_ Destroyed Flight Unit. 03049_ S-10 Pest destroyed. 03049_ Switching to secondary target: S-10 Pest. 03052_ S-10 Pest destroyed. 03056_ K-01 Serf collects debris. 03061_ Lgt. Armor Plating destroyed. 03062_ K-01 Serf collects debris. 03064_ K-01 Serf cleans the Hadron Collector. 03065_ S-10 Pest destroyed. 03065_ K-01 Serf cleans the Hadron Collector. 03068_ Acquired 17 matter. 03068_ K-01 Serf cleans the Hadron Collector. 03070_ K-01 Serf collects debris. 03071_ Acquired 15 matter. 03073_ K-01 Serf collects debris. 03077_ K-01 Serf cleans the Hadron Collector. 03080_ Acquired 43 matter. 03082_ K-01 Serf cleans the Hadron Collector. 03092_ Lgt. Assault Rifle destroyed. 03092_ Lgt. Armor Plating destroyed. Map ----- +----------------------------------------------------+ | ?????????????????????????????????????????????????? | | ?????????????????????????????????????????????????? | | ?????????????????????????????????????????????????? | | ?????????????????????????????????????????????????? | | ?????????????????????????????????????????????????? | | ?????????????????????????????????????????????????? | | ?????????????????????????????????????????????????? | | ?????????????????????????????????????????????????? | | ?????????????????????????????????????????????????? | | ?????????????????????????????? ????????????????? | | ?????????????????????????????? ????????????????? | | ?????????????????????????????? ????????????????? | | ?????????????????????????????# #???????????????? | | ?????????????????????????????# #???????????????? | | ?????????????????????????????# #???????????????? | | ?????????????????????????????# #???????????????? | | ?????????????????????????????# #???????????????? | | ?????????????????????????????# #???????????????? | | ?????????????????????????????# #???????????????? | | ????????????????????????????## #???????????????? | | ????????????????????????????? ######??????????? | | ?????????????????????????????# ???????????? | | ?????????????????????????????# ?????????????? | | ?????????????????????????????# % ???????????????? | | ?????????? u###########+#######??????????? | | ???????????????# s /@ = k[ #??????????? | | ?????????????????##ss #g""" ""% """ #??????????? | | ??????????????????# ??# """ """*""" #??????????? | | ??????????????????# ??? + """ """[""" #??????????? | | ??????????????????????### """ """%""" #??????????? | | ????????????????????????# ka = #??????????? | | ????????????????????????#############+#??????????? | | ????????????????????????????? ?# #??????????? | | ???????????????????????????? """?#=#??????????? | | ???????????????????????????# """ #%############ | | ???????????????????????????# """ #=% !%== | | ???????????????????????????# +* |= | | ???????????????????????????# """ # *= ! | | ???????????????????????????# """ # ######### | | ???????????????????????????? """?# # #??# | | ????????????????????????????? ?# # #??# | | ??????????????????????????????####??# # #??# | | ????????????????????????????????????# # #### | | ????????????????????????????????????# # + | | ????????????????????????????????????# # ####+ | | ????????????????????????????????????### # #? | | ??????????????????????????????????????? # ## "" | | ??????????????????????????????????????? # ## "" | | ??????????????????????????????????????? ####### "" | | ??????????????????????????????????????? #?????# | +----------------------------------------------------+ Best States ------------- Heat Dissipation 47 Energy Generation 14 Energy Capacity 250 Matter Stores 262 Matter Capacity 300 Sight Range 16 Terrain Scan Density 10 Armor Coverage 300 Evasion (%) 40 Recoil Reduction 2 Item Schematics ----------------- None Robot Schematics ------------------ None Fabricated ------------ Nothing Alien Tech Used ----------------- None Achievements -------------- None Challenges ------------ None Game ------ Seed AerolevMediumRay Manual? 0 Play Time 00:14:23 Cumulative 160.3 hours Start 2021.05.24 @ 19:43:19 End 2021.05.24 @ 19:54:29 Sessions 1 Manual Loads 0 Difficulty Rogue Special Mode None Game No. 208 Rogue 121 Adventurer 87 Explorer 0 Win Type - Total 4 Types 3/0/0/1/0/0/0/0/0 Lore% 62 Gallery% 71 Achievement% 58 Wizard Run 0 Options --------- ASCII 0 Keyboard 1 Movement Numpad Keybinds 0 Fullscreen 1 Font 18/Smallcaps Map View 76x50 Tactical HUD 1 Map Filters NONE Filters NONE Steam 1 RUN: 930f4c0b-d38a-4051-b571-e12a434392cc